[Event "GER-ch Youth U10W 2020"]
[Site "Willingen"]
[Date "2020.10.30"]
[Round "6.10"]
[White "Becker, Hanna Charlotte"]
[Black "Rössling, Laura Marie"]
[Result "0-1"]
[ECO "A40"]
[WhiteElo "853"]
[BlackElo "937"]
[Annotator "NA RC"]
[PlyCount "62"]
[EventDate "2020.10.27"]
[EventType "swiss"]
[EventRounds "7"]
[EventCountry "GER"]
[SourceTitle "playchess.com"]
[Source "ChessBase"]
[SourceQuality "1"]
[TimeControl "40/4500+30:900+30"]

1. d4 {[%emt 0:00:00]} e5 {[%emt 0:00:00]} 2. Nf3 {[%emt 0:00:07]} exd4 {[%emt 0:03:49]} 3. e4 {[%emt 0:01:37]} dxe3 {[%emt 0:01:56]} 4. fxe3 {[%emt 0:00:24]} Nf6 {[%emt 0:02:36]} 5. Nc3 {[%emt 0:00:32]} Nc6 {[%emt 0:02:30]} 6. e4 {[%emt 0:00:48]} Bb4 {[%emt 0:02:30]} 7. Bd2 {[%emt 0:00:46]} d5 {[%emt 0:04:47]} 8. exd5 {[%emt 0:00:27]} Nxd5 {[%emt 0:01:02]} 9. Nxd5 {[%emt 0:00:22]} Qxd5 {[%emt 0:02:54]} 10. Bxb4 {[%emt 0:01:27]} Qe4+ {[%emt 0:05:23]} 11. Be2 {[%emt 0:01:50]} Qxb4+ {[%emt 0:01:15]} 12. Qd2 {[%emt 0:02:12]} Qxb2 {[%emt 0:02:54]} 13. Qe3+ {[%emt 0:00:27]} Be6 {[%emt 0:02:02]} 14. Qc1 {[%emt 0:00:47]} Qc3+ {[%emt 0:00:58]} 15. Nd2 {[%emt 0:01:18]} O-O {[%emt 0:03:22]} 16. O-O {[%emt 0:01:36]} Qc5+ {[%emt 0:03:44]} 17. Rf2 {[%emt 0:00:17]} Nd4 {[%emt 0:02:00]} 18. Bd3 {[%emt 0:01:03]} Bf5 {[%emt 0:02:01]} 19. Kf1 {[%emt 0:01:32]} Rfe8 20. Rf4 {[%emt 0:01:03]} Rad8 {[%emt 0:08:03]} 21. Nb3 {[%emt 0:00:58]} Nxb3 {[%emt 0:02:46]} 22. axb3 {[%emt 0:00:13]} Bxd3+ {[%emt 0:04:48]} 23. cxd3 {[%emt 0:01:19]} Qe5 {[%emt 0:04:30]} 24. Rxa7 {[%emt 0:00:52]} Qe2+ {[%emt 0:00:30]} 25. Kg1 {[%emt 0:00:24]} Rxd3 {[%emt 0:00:32]} 26. h3 {[%emt 0:01:50]} Rd1+ {[%emt 0:00:36]} 27. Qxd1 {[%emt 0:01:00]} Qxd1+ {[%emt 0:00:28]} 28. Kf2 {[%emt 0:01:13]} Re2+ {[%emt 0:00:49]} 29. Kg3 {[%emt 0:00:52]} Qd3+ {[%emt 0:01:35]} 30. Rf3 {[%emt 0:00:12]} Qg6+ {[%emt 0:01:16]} 31. Kh2 {[%emt 0:00:36]} Qxg2# {[%emt 0:00:12]} 0-1

[Event "GER-ch Youth U10W 2020"]
[Site "Willingen"]
[Date "2020.10.30"]
[Round "6.11"]
[White "John, Linnea"]
[Black "Halas, Neele Zoe"]
[Result "0-1"]
[ECO "C45"]
[WhiteElo "1146"]
[BlackElo "1295"]
[Annotator "NA RC"]
[PlyCount "100"]
[EventDate "2020.10.27"]
[EventType "swiss"]
[EventRounds "7"]
[EventCountry "GER"]
[SourceTitle "playchess.com"]
[Source "ChessBase"]
[SourceQuality "1"]
[TimeControl "40/4500+30:900+30"]

1. e4 {[%emt 0:00:00]} e5 {[%emt 0:00:00]} 2. Nf3 {[%emt 0:00:00]} Nc6 {[%emt 0:00:00]} 3. d4 {[%emt 0:00:00]} exd4 {[%emt 0:00:00]} 4. Nxd4 {[%emt 0:00:01]} Bc5 {[%emt 0:00:00]} 5. Be3 {[%emt 0:00:12]} Qf6 {[%emt 0:00:00]} 6. c3 {[%emt 0:00:41]} Nge7 {[%emt 0:00:18]} 7. Bc4 {[%emt 0:03:50]} Ne5 {[%emt 0:00:39]} 8. Be2 Qg6 9. O-O {[%emt 0:06:26]} O-O {[%emt 0:13:24]} 10. Nd2 {[%emt 0:01:58]} d6 {[%emt 0:06:28]} 11. Bh5 {[%emt 0:08:36]} Qf6 {[%emt 0:07:31]} 12. N2b3 {[%emt 0:12:51]} Bb6 {[%emt 0:13:02]} 13. Qd2 {[%emt 0:03:09]} Nc4 {[%emt 0:09:36]} 14. Qc1 {[%emt 0:06:56]} Nxe3 {[%emt 0:06:47]} 15. Qxe3 {[%emt 0:04:09]} c5 {[%emt 0:06:56]} 16. Nf3 {[%emt 0:05:07]} c4 {[%emt 0:04:02]} 17. Nbd4 {[%emt 0:01:00]} g6 {[%emt 0:03:25]} 18. Bxg6 {[%emt 0:03:51]} Nxg6 {[%emt 0:01:01]} 19. Qh6 {[%emt 0:02:42]} Qg7 {[%emt 0:03:15]} 20. Qd2 {[%emt 0:03:15]} Ne5 {[%emt 0:00:58]} 21. Qe2 {[%emt 0:00:50]} Bg4 {[%emt 0:01:13]} 22. h3 {[%emt 0:03:05]} Bxh3 {[%emt 0:00:54]} 23. Nh4 {[%emt 0:01:34]} Kh8 {[%emt 0:02:31]} 24. Ndf5 {[%emt 0:01:56]} Bxf5 {[%emt 0:02:16]} 25. Nxf5 {[%emt 0:01:07]} Qf6 {[%emt 0:00:44]} 26. Qh5 {[%emt 0:01:58]} Rg8 {[%emt 0:00:42]} 27. Ng3 {[%emt 0:02:58]} Qg6 {[%emt 0:00:28]} 28. Qe2 {[%emt 0:01:40]} Nd3 {[%emt 0:00:34]} 29. Rad1 {[%emt 0:00:54]} Nxf2 {[%emt 0:00:35]} 30. Rxf2 {[%emt 0:00:42]} Bxf2+ {[%emt 0:00:06]} 31. Qxf2 {[%emt 0:00:18]} Qxg3 {[%emt 0:00:04]} 32. Qxg3 {[%emt 0:00:28]} Rxg3 {[%emt 0:00:06]} 33. Rxd6 {[%emt 0:00:18]} Rg7 {[%emt 0:01:10]} 34. Rd4 {[%emt 0:00:22]} b5 {[%emt 0:00:14]} 35. Rd5 {[%emt 0:00:15]} a6 {[%emt 0:00:23]} 36. Rd6 {[%emt 0:01:57]} Rag8 {[%emt 0:00:36]} 37. Rd2 {[%emt 0:00:26]} h6 {[%emt 0:00:24]} 38. Kf1 {[%emt 0:00:47]} Kh7 {[%emt 0:00:36]} 39. Rd6 {[%emt 0:00:41]} Rxg2 {[%emt 0:00:14]} 40. Rxa6 {[%emt 0:00:15]} R8g6 {[%emt 0:00:32]} 41. Ra5 {[%emt 0:15:18]} Rxb2 {[%emt 0:15:17]} 42. Ra7 {[%emt 0:00:47]} Kg7 {[%emt 0:00:06]} 43. e5 {[%emt 0:01:05]} Re6 {[%emt 0:00:23]} 44. Ke1 {[%emt 0:00:26]} Rxe5+ {[%emt 0:00:22]} 45. Kd1 Rh2 {[%emt 0:00:59]} 46. Rd7 {[%emt 0:00:41]} Ree2 {[%emt 0:00:24]} 47. Rd5 {[%emt 0:00:36]} Rxa2 {[%emt 0:00:22]} 48. Rd2 {[%emt 0:00:25]} Raxd2+ {[%emt 0:00:13]} 49. Ke1 {[%emt 0:00:18]} Ra2 {[%emt 0:00:06]} 50. Kf1 {[%emt 0:00:04]} Ra1# {[%emt 0:00:05]} 0-1

[Event "GER-ch Youth U10W 2020"]
[Site "Willingen"]
[Date "2020.10.30"]
[Round "6.12"]
[White "Stepanjan, Tatevik Mia"]
[Black "Le, Thao-Linh"]
[Result "0-1"]
[ECO "C42"]
[WhiteElo "1030"]
[BlackElo "1121"]
[Annotator "NA RC"]
[PlyCount "44"]
[EventDate "2020.10.27"]
[EventType "swiss"]
[EventRounds "7"]
[EventCountry "GER"]
[SourceTitle "playchess.com"]
[Source "ChessBase"]
[SourceQuality "1"]
[TimeControl "40/4500+30:900+30"]

1. e4 {[%emt 0:00:00]} e5 {[%emt 0:00:00]} 2. Nf3 {[%emt 0:00:00]} Nf6 {[%emt 0:00:48]} 3. Nc3 {[%emt 0:00:09]} Bb4 {[%emt 0:01:37]} 4. d3 {[%emt 0:01:02]} Nc6 {[%emt 0:03:46]} 5. Bg5 {[%emt 0:00:21]} d6 {[%emt 0:02:04]} 6. Be2 {[%emt 0:00:20]} Be6 {[%emt 0:02:12]} 7. d4 {[%emt 0:01:33]} Qd7 {[%emt 0:01:09]} 8. d5 {[%emt 0:00:26]} Bg4 {[%emt 0:03:26]} 9. dxc6 {[%emt 0:00:38]} Qxc6 {[%emt 0:00:33]} 10. Bd3 {[%emt 0:02:51]} Bxc3+ {[%emt 0:05:30]} 11. bxc3 {[%emt 0:00:23]} Qxc3+ {[%emt 0:00:40]} 12. Ke2 {[%emt 0:00:30]} Qc6 {[%emt 0:01:27]} 13. Rb1 {[%emt 0:00:33]} Nxe4 {[%emt 0:01:11]} 14. Bb5 {[%emt 0:02:08]} Nc3+ {[%emt 0:00:18]} 15. Kf1 {[%emt 0:00:38]} Qxb5+ {[%emt 0:01:12]} 16. Rxb5 {[%emt 0:00:21]} Nxd1 {[%emt 0:00:23]} 17. Rxb7 {[%emt 0:00:30]} O-O {[%emt 0:00:46]} 18. Rxc7 {[%emt 0:00:12]} Rab8 {[%emt 0:00:27]} 19. Rxa7 {[%emt 0:01:14]} Nc3 {[%emt 0:01:40]} 20. a4 {[%emt 0:02:23]} Rb1+ {[%emt 0:00:44]} 21. Ne1 {[%emt 0:00:16]} Be2+ {[%emt 0:00:08]} 22. Kg1 {[%emt 0:07:38]} Rxe1# 0-1

[Event "GER-ch Youth U10W 2020"]
[Site "Willingen"]
[Date "2020.10.30"]
[Round "6.13"]
[White "Tran, Hanna Emilie Mai Hoa"]
[Black "Manakov, Luisa"]
[Result "0-1"]
[ECO "C50"]
[WhiteElo "986"]
[BlackElo "1103"]
[Annotator "NA RC"]
[PlyCount "54"]
[EventDate "2020.10.27"]
[EventType "swiss"]
[EventRounds "7"]
[EventCountry "GER"]
[SourceTitle "playchess.com"]
[Source "ChessBase"]
[SourceQuality "1"]
[TimeControl "40/4500+30:900+30"]

1. e4 {[%emt 0:00:00]} e5 {[%emt 0:00:00]} 2. Nf3 {[%emt 0:00:00]} Nc6 {[%emt 0:00:00]} 3. Bc4 {[%emt 0:00:04]} Bc5 {[%emt 0:00:00]} 4. Nc3 {[%emt 0:00:32]} Nf6 {[%emt 0:00:17]} 5. O-O {[%emt 0:00:39]} d6 {[%emt 0:00:24]} 6. h3 {[%emt 0:00:26]} O-O {[%emt 0:00:17]} 7. d3 {[%emt 0:00:13]} h6 {[%emt 0:00:11]} 8. Nd5 {[%emt 0:00:22]} Nxd5 {[%emt 0:01:10]} 9. Bxd5 {[%emt 0:00:54]} Be6 {[%emt 0:00:55]} 10. Bxe6 {[%emt 0:01:00]} fxe6 {[%emt 0:00:16]} 11. Bd2 {[%emt 0:01:07]} d5 {[%emt 0:00:21]} 12. Nxe5 {[%emt 0:01:26]} Nxe5 {[%emt 0:01:17]} 13. d4 {[%emt 0:00:58]} Bxd4 {[%emt 0:00:54]} 14. Bb4 {[%emt 0:00:11]} c5 {[%emt 0:02:09]} 15. Bc3 {[%emt 0:00:22]} Bxc3 {[%emt 0:00:41]} 16. bxc3 {[%emt 0:00:06]} dxe4 {[%emt 0:00:27]} 17. Qh5 {[%emt 0:00:24]} Rf5 {[%emt 0:00:56]} 18. Qe2 {[%emt 0:00:29]} Qd5 {[%emt 0:00:56]} 19. Rfd1 {[%emt 0:00:16]} Qc4 {[%emt 0:00:50]} 20. Qe3 {[%emt 0:00:32]} Raf8 {[%emt 0:00:41]} 21. Rf1 {[%emt 0:00:33]} Rg5 {[%emt 0:02:45]} 22. Rab1 {[%emt 0:02:16]} b6 {[%emt 0:00:40]} 23. h4 {[%emt 0:01:00]} Nf3+ {[%emt 0:00:50]} 24. Kh1 {[%emt 0:00:22]} Nxh4 {[%emt 0:00:31]} 25. g3 {[%emt 0:05:55]} Nf3 {[%emt 0:00:40]} 26. a3 {[%emt 0:02:04]} Rh5+ {[%emt 0:00:12]} 27. Kg2 {[%emt 0:00:52]} Rh2# {[%emt 0:00:08]} 0-1

[Event "GER-ch Youth U10W 2020"]
[Site "Willingen"]
[Date "2020.10.30"]
[Round "6.14"]
[White "Wolf, Anna"]
[Black "Le, Thi An"]
[Result "1-0"]
[ECO "C50"]
[WhiteElo "1098"]
[BlackElo "976"]
[Annotator "NA RC"]
[PlyCount "63"]
[EventDate "2020.10.27"]
[EventType "swiss"]
[EventRounds "7"]
[EventCountry "GER"]
[SourceTitle "playchess.com"]
[Source "ChessBase"]
[SourceQuality "1"]
[TimeControl "40/4500+30:900+30"]

1. e4 {[%emt 0:00:00]} e5 {[%emt 0:00:00]} 2. Nf3 {[%emt 0:00:00]} Nc6 {[%emt 0:00:00]} 3. Bc4 {[%emt 0:00:03]} Bc5 {[%emt 0:00:00]} 4. d3 {[%emt 0:00:17]} h6 {[%emt 0:00:30]} 5. O-O {[%emt 0:01:27]} d6 {[%emt 0:00:39]} 6. Nbd2 {[%emt 0:00:28]} Nf6 {[%emt 0:00:31]} 7. c3 {[%emt 0:00:23]} Bg4 {[%emt 0:00:49]} 8. h3 {[%emt 0:00:28]} Bxf3 {[%emt 0:00:59]} 9. Qxf3 {[%emt 0:00:22]} Qd7 {[%emt 0:00:31]} 10. a4 {[%emt 0:03:04]} a6 {[%emt 0:00:57]} 11. Re1 {[%emt 0:02:54]} O-O-O {[%emt 0:00:22]} 12. b4 {[%emt 0:03:03]} Ba7 {[%emt 0:00:38]} 13. b5 {[%emt 0:00:42]} Nb8 {[%emt 0:01:04]} 14. Nf1 {[%emt 0:03:37]} Rdf8 {[%emt 0:00:48]} 15. Be3 {[%emt 0:01:55]} Bxe3 {[%emt 0:01:06]} 16. Qxe3 {[%emt 0:01:41]} Qe7 {[%emt 0:01:18]} 17. Qe2 {[%emt 0:02:11]} Nfd7 {[%emt 0:00:52]} 18. d4 {[%emt 0:03:14]} g5 {[%emt 0:01:16]} 19. bxa6 {[%emt 0:00:50]} bxa6 {[%emt 0:00:31]} 20. Bxa6+ {[%emt 0:00:42]} Kd8 {[%emt 0:00:08]} 21. g4 {[%emt 0:03:23]} Rh7 {[%emt 0:01:13]} 22. Ng3 {[%emt 0:02:23]} f6 {[%emt 0:02:53]} 23. Bb5 {[%emt 0:01:42]} c6 {[%emt 0:04:29]} 24. Nf5 {[%emt 0:01:13]} Qe8 {[%emt 0:03:48]} 25. Bc4 {[%emt 0:03:10]} Rfh8 {[%emt 0:00:59]} 26. Nxd6 {[%emt 0:01:03]} Qf8 {[%emt 0:00:51]} 27. dxe5 {[%emt 0:02:02]} fxe5 {[%emt 0:02:12]} 28. Red1 {[%emt 0:01:10]} h5 {[%emt 0:01:16]} 29. Rab1 {[%emt 0:00:40]} hxg4 {[%emt 0:01:13]} 30. Qxg4 {[%emt 0:01:25]} Rxh3 {[%emt 0:00:35]} 31. Nf7+ {[%emt 0:00:19]} Ke7 {[%emt 0:02:09]} 32. Qe6# {[%emt 0:01:55]} 1-0

[Event "GER-ch Youth U10W 2020"]
[Site "Willingen"]
[Date "2020.10.30"]
[Round "6.15"]
[White "Nalam, Mokshadha"]
[Black "Blaufuß, Lena"]
[Result "1-0"]
[ECO "C54"]
[WhiteElo "962"]
[BlackElo "1073"]
[Annotator "NA RC"]
[PlyCount "53"]
[EventDate "2020.10.27"]
[EventType "swiss"]
[EventRounds "7"]
[EventCountry "GER"]
[SourceTitle "playchess.com"]
[Source "ChessBase"]
[SourceQuality "1"]
[TimeControl "40/4500+30:900+30"]

1. e4 {[%emt 0:00:00]} e5 {[%emt 0:00:00]} 2. Nf3 {[%emt 0:00:00]} Nc6 {[%emt 0:00:00]} 3. Bc4 {[%emt 0:00:00]} Bc5 {[%emt 0:00:00]} 4. c3 {[%emt 0:00:00]} Nf6 {[%emt 0:00:32]} 5. d3 {[%emt 0:00:16]} d6 {[%emt 0:00:29]} 6. h3 {[%emt 0:00:09]} h6 {[%emt 0:00:27]} 7. Nbd2 {[%emt 0:00:17]} O-O {[%emt 0:00:33]} 8. O-O {[%emt 0:00:06]} Be6 {[%emt 0:00:42]} 9. Bxe6 {[%emt 0:00:07]} fxe6 {[%emt 0:00:18]} 10. Re1 {[%emt 0:00:16]} Nh5 {[%emt 0:02:22]} 11. Nf1 {[%emt 0:01:34]} Qh4 {[%emt 0:01:20]} 12. Nxh4 {[%emt 0:00:37]} Bxf2+ {[%emt 0:00:59]} 13. Kh1 {[%emt 0:02:00]} Ng3+ {[%emt 0:01:41]} 14. Nxg3 {[%emt 0:01:12]} Bxg3 {[%emt 0:00:42]} 15. Nf3 {[%emt 0:01:16]} Rf4 {[%emt 0:01:23]} 16. Bxf4 {[%emt 0:00:13]} Bxe1 {[%emt 0:00:35]} 17. Qxe1 {[%emt 0:00:31]} exf4 {[%emt 0:00:22]} 18. Qh4 {[%emt 0:00:25]} Rf8 {[%emt 0:00:29]} 19. Rf1 {[%emt 0:00:33]} e5 {[%emt 0:00:18]} 20. g3 {[%emt 0:02:37]} Kh7 {[%emt 0:00:40]} 21. gxf4 {[%emt 0:00:16]} exf4 {[%emt 0:00:30]} 22. Nh2 {[%emt 0:00:16]} g5 {[%emt 0:01:10]} 23. Qg4 {[%emt 0:01:21]} Ne5 {[%emt 0:01:45]} 24. Qe6 {[%emt 0:00:35]} f3 {[%emt 0:01:47]} 25. Qe7+ {[%emt 0:00:44]} Rf7 {[%emt 0:00:19]} 26. Qe8 {[%emt 0:00:34]} f2 {[%emt 0:01:19]} 27. d4 1-0

[Event "GER-ch Youth U10W 2020"]
[Site "Willingen"]
[Date "2020.10.30"]
[Round "6.17"]
[White "Abram, Kristina-Maria"]
[Black "Mo, Keyou"]
[Result "1-0"]
[ECO "C24"]
[WhiteElo "1038"]
[BlackElo "950"]
[Annotator "NA RC"]
[PlyCount "127"]
[EventDate "2020.10.27"]
[EventType "swiss"]
[EventRounds "7"]
[EventCountry "GER"]
[SourceTitle "playchess.com"]
[Source "ChessBase"]
[SourceQuality "1"]
[TimeControl "40/4500+30:900+30"]

1. e4 {[%emt 0:00:00]} e5 {[%emt 0:00:00]} 2. Bc4 {[%emt 0:00:00]} Nf6 {[%emt 0:00:00]} 3. d3 {[%emt 0:00:00]} d5 {[%emt 0:00:00]} 4. exd5 {[%emt 0:00:37]} Nxd5 {[%emt 0:00:10]} 5. Nf3 {[%emt 0:00:19]} Nc6 {[%emt 0:00:10]} 6. Bxd5 {[%emt 0:01:01]} Qxd5 {[%emt 0:00:08]} 7. Nc3 {[%emt 0:00:16]} Qd7 {[%emt 0:01:20]} 8. O-O {[%emt 0:00:40]} Bc5 {[%emt 0:00:42]} 9. Qe2 {[%emt 0:01:04]} Bd6 {[%emt 0:01:37]} 10. Bf4 {[%emt 0:01:35]} O-O {[%emt 0:01:17]} 11. Bxe5 {[%emt 0:00:24]} Bxe5 {[%emt 0:00:53]} 12. Nxe5 {[%emt 0:00:16]} Qe6 {[%emt 0:04:34]} 13. Rfe1 {[%emt 0:01:28]} Nxe5 {[%emt 0:02:02]} 14. Qxe5 {[%emt 0:00:17]} Qg6 {[%emt 0:01:02]} 15. Re3 {[%emt 0:01:36]} c6 {[%emt 0:02:35]} 16. Rg3 {[%emt 0:01:01]} f6 {[%emt 0:03:52]} 17. Qe7 {[%emt 0:01:04]} Qf7 {[%emt 0:02:53]} 18. Re1 {[%emt 0:02:17]} Bd7 {[%emt 0:04:15]} 19. Rge3 {[%emt 0:03:12]} Rae8 {[%emt 0:01:30]} 20. Qxf7+ {[%emt 0:01:10]} Kxf7 {[%emt 0:00:48]} 21. Rxe8 {[%emt 0:00:55]} Bxe8 {[%emt 0:00:10]} 22. d4 {[%emt 0:01:01]} b5 {[%emt 0:01:07]} 23. d5 {[%emt 0:00:48]} b4 {[%emt 0:01:11]} 24. Ne4 {[%emt 0:00:39]} cxd5 {[%emt 0:00:12]} 25. Nd6+ {[%emt 0:00:09]} Kg8 {[%emt 0:03:45]} 26. Nxe8 {[%emt 0:00:13]} Kf7 {[%emt 0:01:41]} 27. Nc7 {[%emt 0:00:12]} Rc8 {[%emt 0:00:31]} 28. Nxd5 {[%emt 0:00:26]} Rxc2 {[%emt 0:00:27]} 29. Re7+ {[%emt 0:00:07]} Kg6 {[%emt 0:00:32]} 30. Rxa7 {[%emt 0:00:20]} Rxb2 {[%emt 0:00:19]} 31. a4 bxa3 32. Ne3 f5 {[%emt 0:02:06]} 33. Rxa3 {[%emt 0:01:29]} f4 {[%emt 0:00:08]} 34. Nf1 {[%emt 0:00:27]} Kf5 {[%emt 0:00:50]} 35. g3 {[%emt 0:00:36]} g5 {[%emt 0:00:32]} 36. h3 {[%emt 0:01:04]} h5 {[%emt 0:00:28]} 37. Ra5+ {[%emt 0:01:18]} Kg6 {[%emt 0:00:36]} 38. gxf4 {[%emt 0:00:52]} gxf4 {[%emt 0:00:27]} 39. h4 {[%emt 0:00:23]} Rb1 {[%emt 0:00:56]} 40. Rg5+ {[%emt 0:00:31]} Kh6 {[%emt 0:00:18]} 41. Rf5 {[%emt 0:15:21]} Rb4 {[%emt 0:16:13]} 42. Nd2 {[%emt 0:01:00]} Kg6 {[%emt 0:02:10]} 43. Rg5+ {[%emt 0:00:29]} Kh6 {[%emt 0:00:19]} 44. Nf3 {[%emt 0:00:33]} Rb3 {[%emt 0:01:31]} 45. Ne5 {[%emt 0:00:13]} f3 {[%emt 0:00:32]} 46. Nf7+ {[%emt 0:00:29]} Kh7 {[%emt 0:00:29]} 47. Ne5 {[%emt 0:01:21]} Kh6 {[%emt 0:00:12]} 48. Kh2 {[%emt 0:02:14]} Rb5 {[%emt 0:01:38]} 49. Nf7+ {[%emt 0:00:31]} Kh7 {[%emt 0:00:26]} 50. Rxb5 {[%emt 0:00:07]} Kg6 {[%emt 0:00:07]} 51. Kg3 {[%emt 0:00:14]} Kxf7 {[%emt 0:00:08]} 52. Rxh5 {[%emt 0:00:08]} Kg6 {[%emt 0:00:13]} 53. Rg5+ {[%emt 0:00:21]} Kf6 {[%emt 0:00:10]} 54. Kxf3 {[%emt 0:00:09]} Ke6 {[%emt 0:00:11]} 55. Kg4 {[%emt 0:00:06]} Kf6 {[%emt 0:00:08]} 56. h5 {[%emt 0:00:07]} Kf7 {[%emt 0:00:13]} 57. h6 {[%emt 0:00:06]} Kf8 {[%emt 0:00:09]} 58. h7 {[%emt 0:00:06]} Kf7 {[%emt 0:00:08]} 59. h8=Q Ke7 60. Qe5+ {[%emt 0:01:08]} Kd7 {[%emt 0:00:41]} 61. Qf6 {[%emt 0:00:37]} Ke8 {[%emt 0:00:16]} 62. Qg7 {[%emt 0:00:31]} Kd8 {[%emt 0:00:04]} 63. Rh5 {[%emt 0:00:13]} Ke8 {[%emt 0:00:10]} 64. Rh8# 1-0

[Event "GER-ch Youth U10W 2020"]
[Site "Willingen"]
[Date "2020.10.30"]
[Round "6.18"]
[White "Peglau, Lorena"]
[Black "Mehner, Clara"]
[Result "1/2-1/2"]
[ECO "C44"]
[WhiteElo "1061"]
[BlackElo "1244"]
[Annotator "NA RC"]
[PlyCount "100"]
[EventDate "2020.10.27"]
[EventType "swiss"]
[EventRounds "7"]
[EventCountry "GER"]
[SourceTitle "playchess.com"]
[Source "ChessBase"]
[SourceQuality "1"]
[TimeControl "40/4500+30:900+30"]

1. e4 {[%emt 0:00:00]} e5 {[%emt 0:00:00]} 2. Nf3 {[%emt 0:00:00]} Nc6 {[%emt 0:00:00]} 3. d4 {[%emt 0:00:13]} exd4 {[%emt 0:00:21]} 4. Nxd4 {[%emt 0:00:24]} Nf6 {[%emt 0:00:30]} 5. Nxc6 {[%emt 0:00:21]} bxc6 {[%emt 0:00:29]} 6. Nc3 {[%emt 0:00:21]} Bb4 {[%emt 0:00:52]} 7. Bd3 {[%emt 0:00:43]} d5 {[%emt 0:00:43]} 8. exd5 {[%emt 0:00:36]} cxd5 {[%emt 0:00:32]} 9. O-O {[%emt 0:00:33]} O-O {[%emt 0:00:47]} 10. Bg5 {[%emt 0:00:39]} c6 {[%emt 0:00:45]} 11. h3 {[%emt 0:00:16]} Re8 {[%emt 0:01:27]} 12. Qf3 {[%emt 0:00:27]} Be7 {[%emt 0:00:48]} 13. Rfe1 {[%emt 0:00:14]} Be6 {[%emt 0:00:49]} 14. Ne2 {[%emt 0:01:39]} Rb8 {[%emt 0:01:31]} 15. b3 {[%emt 0:01:22]} c5 {[%emt 0:01:25]} 16. c4 {[%emt 0:07:18]} d4 {[%emt 0:03:21]} 17. Nf4 {[%emt 0:03:21]} Bd7 {[%emt 0:02:39]} 18. Rxe7 {[%emt 0:14:33]} Qxe7 {[%emt 0:00:32]} 19. Nh5 {[%emt 0:02:00]} Rb6 {[%emt 0:03:16]} 20. Bxf6 {[%emt 0:05:04]} Rxf6 {[%emt 0:00:33]} 21. Nxf6+ {[%emt 0:01:41]} Qxf6 {[%emt 0:00:19]} 22. Qh5 {[%emt 0:01:40]} g6 {[%emt 0:01:48]} 23. Qxc5 {[%emt 0:02:25]} Qb6 {[%emt 0:03:38]} 24. Qxb6 {[%emt 0:03:24]} axb6 {[%emt 0:00:42]} 25. a4 {[%emt 0:00:45]} f5 {[%emt 0:02:04]} 26. Rc1 {[%emt 0:02:08]} Kg7 {[%emt 0:02:38]} 27. c5 {[%emt 0:00:54]} Rc8 {[%emt 0:03:28]} 28. c6 {[%emt 0:01:58]} Rxc6 {[%emt 0:00:57]} 29. Rxc6 {[%emt 0:00:28]} Bxc6 {[%emt 0:00:12]} 30. Bb5 {[%emt 0:03:03]} Bxb5 {[%emt 0:00:22]} 31. axb5 {[%emt 0:00:06]} Kf6 {[%emt 0:00:32]} 32. Kf1 {[%emt 0:01:42]} Ke5 {[%emt 0:00:48]} 33. Ke2 {[%emt 0:00:57]} h5 {[%emt 0:03:00]} 34. f3 {[%emt 0:02:06]} Kd5 {[%emt 0:01:09]} 35. Kd3 {[%emt 0:01:36]} Kc5 {[%emt 0:02:11]} 36. g3 {[%emt 0:00:47]} g5 {[%emt 0:01:54]} 37. g4 {[%emt 0:00:43]} fxg4 {[%emt 0:00:53]} 38. fxg4 {[%emt 0:00:09]} h4 {[%emt 0:01:07]} 39. Ke4 {[%emt 0:00:08]} Kxb5 {[%emt 0:01:05]} 40. Kxd4 {[%emt 0:00:12]} Kb4 {[%emt 0:00:22]} 41. Kd3 {[%emt 0:17:00]} Kxb3 {[%emt 0:15:18]} 42. Kd2 {[%emt 0:01:52]} b5 {[%emt 0:00:40]} 43. Kc1 {[%emt 0:02:22]} b4 {[%emt 0:00:18]} 44. Kb1 {[%emt 0:00:19]} Kc3 {[%emt 0:00:10]} 45. Kc1 {[%emt 0:00:12]} b3 {[%emt 0:00:09]} 46. Kb1 {[%emt 0:00:31]} b2 {[%emt 0:00:13]} 47. Ka2 {[%emt 0:00:42]} Kc2 {[%emt 0:00:07]} 48. Ka3 {[%emt 0:00:12]} b1=Q {[%emt 0:00:11]} 49. Ka4 {[%emt 0:00:08]} Qb6 {[%emt 0:00:10]} 50. Ka3 {[%emt 0:00:09]} Qb3# {[%emt 0:00:09]} 1/2-1/2

[Event "GER-ch Youth U10W 2020"]
[Site "Willingen"]
[Date "2020.10.31"]
[Round "7.1"]
[White "Sickmann, Lisa"]
[Black "Hoffmann, Svenja"]
[Result "1-0"]
[ECO "C70"]
[WhiteElo "1510"]
[BlackElo "1219"]
[Annotator "NA RC"]
[PlyCount "59"]
[EventDate "2020.10.27"]
[EventType "swiss"]
[EventRounds "7"]
[EventCountry "GER"]
[SourceTitle "playchess.com"]
[Source "ChessBase"]
[SourceQuality "1"]
[TimeControl "40/4500+30:900+30"]

1. e4 {[%emt 0:00:00]} e5 {[%emt 0:00:00]} 2. Nf3 {[%emt 0:00:00]} Nc6 {[%emt 0:00:05]} 3. Bb5 {[%emt 0:00:00]} a6 {[%emt 0:00:44]} 4. Ba4 {[%emt 0:00:00]} b5 {[%emt 0:01:03]} 5. Bb3 {[%emt 0:00:00]} Na5 {[%emt 0:00:56]} 6. d4 {[%emt 0:04:56]} exd4 {[%emt 0:01:19]} 7. O-O {[%emt 0:02:56]} Bb7 {[%emt 0:02:28]} 8. Bf4 {[%emt 0:06:56]} c5 {[%emt 0:01:40]} 9. Bd5 {[%emt 0:01:12]} Bxd5 {[%emt 0:00:39]} 10. exd5 {[%emt 0:00:07]} d6 {[%emt 0:00:37]} 11. Bg5 {[%emt 0:02:09]} Be7 {[%emt 0:01:53]} 12. Re1 {[%emt 0:01:23]} Qc7 {[%emt 0:02:02]} 13. Bxe7 {[%emt 0:01:25]} Nxe7 {[%emt 0:00:15]} 14. Qe2 {[%emt 0:00:08]} Ra7 {[%emt 0:00:12]} 15. c3 {[%emt 0:00:46]} dxc3 {[%emt 0:01:07]} 16. Nxc3 {[%emt 0:00:17]} O-O {[%emt 0:00:08]} 17. Rac1 {[%emt 0:01:05]} Nc4 {[%emt 0:02:28]} 18. b3 {[%emt 0:00:37]} Nb6 {[%emt 0:00:20]} 19. Qd3 {[%emt 0:01:27]} b4 {[%emt 0:03:01]} 20. Ng5 {[%emt 0:02:03]} g6 {[%emt 0:01:44]} 21. Nge4 {[%emt 0:06:47]} bxc3 {[%emt 0:02:17]} 22. Nf6+ {[%emt 0:00:25]} Kg7 {[%emt 0:01:35]} 23. Qxc3 {[%emt 0:00:09]} Qd8 {[%emt 0:04:02]} 24. Ne8+ {[%emt 0:01:05]} Kh6 {[%emt 0:00:39]} 25. Qh3+ {[%emt 0:01:59]} Kg5 {[%emt 0:00:15]} 26. f4+ {[%emt 0:00:27]} Kxf4 {[%emt 0:01:54]} 27. g3+ {[%emt 0:00:15]} Kf3 {[%emt 0:01:16]} 28. Qf1+ {[%emt 0:00:13]} Kg4 {[%emt 0:01:10]} 29. Qf4+ {[%emt 0:00:09]} Kh5 {[%emt 0:00:09]} 30. Qh4# 1-0